lending/lending_fUSD_20241124
["ID","MTS","AMOUNT","RATE_DAILY","PERIOD"]
[343184117,1732421461180,-166.83,0.00044026,2]
[343184118,1732421461189,-150.0,0.00044034,30]
[343184119,1732421461199,-1000.0,0.00044071,120]
[343184120,1732421461210,-169.87,0.00044097,2]
[343184121,1732421461220,-154.79,0.00044127,30]
[343184122,1732421461229,-764.99,0.00044128,30]
[343184123,1732421461238,-433.65,0.00044128,30]
[343184124,1732421461247,-764.99,0.00044128,30]
[343184125,1732421461256,-793.99,0.00044128,30]
[343184126,1732421461266,-451.43,0.00044128,30]
[343184127,1732421461276,-764.99,0.00044128,30]
[343184128,1732421461286,-433.65,0.00044128,30]
[343184129,1732421461296,-764.99,0.00044128,30]
[343184130,1732421461306,-433.65,0.00044128,30]
[343184131,1732421461315,-1567.38,0.00044128,30]
[343184132,1732421461325,-179.28,0.00044128,30]
[343184133,1732421461335,-150.0,0.00044171,30]
[343184134,1732421461344,-1659.22,0.00044246,120]
[343184135,1732421461355,-150.0,0.00044272,2]
[343184136,1732421461364,-166.9,0.00044283,2]
[343184137,1732421461375,-4648.60008975,0.00044306,2]
[343184138,1732421461385,-150.0,0.00044308,30]
[343184139,1732421461395,-515.44814314,0.00044321,2]
[343184140,1732421461405,-164.34938558,0.00044326,28]
[343184141,1732421461415,-1000.0,0.00044345,120]
[343184142,1732421461427,-613.81,0.00044406,2]
[343184143,1732421461437,-1248.74,0.00044406,2]
[343184144,1732421461447,-725.44,0.00044406,2]
[343184145,1732421461457,-1601.16,0.00044406,2]
[343184146,1732421461467,-500.0,0.00044406,2]
[343184147,1732421461476,-501.74,0.00044406,2]
[343184148,1732421461487,-628.78,0.00044406,2]
[343184149,1732421461496,-500.0,0.00044406,2]
[343184150,1732421461506,-741.0,0.00044406,2]
[343184151,1732421461516,-13031.97317442,0.00044406,15]
[343184152,1732421461526,-3845.09180199,0.00044406,15]
[343184153,1732421461535,-150.0,0.00044445,30]
[343184154,1732421461545,-150.0,0.00044481,2]
[343184155,1732421461555,-150.0,0.00044482,2]
[343184156,1732421461564,-375.005,0.0004449,120]
[343184157,1732421461574,-326.16964013,0.00044517,2]
[343184158,1732421461583,-1000.0,0.00044521,10]
[343184159,1732421461593,-150.0,0.00044582,30]
[343184160,1732421461602,-150.0,0.00044596,2]
[343184161,1732421461612,-3422.31723075,0.00044599,30]
[343184162,1732421461621,-1000.0,0.00044619,120]
[343184163,1732421461631,-154.3854854,0.00044657,30]
[343184164,1732421461640,-1659.22,0.00044657,120]
[343184165,1732421461650,-150.0,0.00044669,2]
[343184166,1732421461662,-1046.95,0.00044699,2]
[343184167,1732421461673,-150.0,0.00044719,30]
[343184168,1732421461683,-161.98970182,0.00044769,2]
[343184169,1732421461692,-500.0,0.00044769,2]
[343184170,1732421461702,-624.49166411,0.00044769,2]
[343184171,1732421461712,-220.42331675,0.00044769,2]
[343184172,1732421461722,-500.0,0.00044769,2]
[343184173,1732421461731,-500.0,0.00044769,2]
[343184174,1732421461871,-500.0,0.00044769,2]
[343184175,1732421461881,-539.25,0.00044769,2]
[343184176,1732421461891,-500.0,0.00044769,2]
[343184177,1732421461903,-358.06,0.00044769,2]
[343184178,1732421461913,-500.0,0.00044769,2]
[343184179,1732421461924,-723.02,0.00044769,2]
[343184180,1732421461934,-500.0,0.00044769,2]
[343184181,1732421461945,-500.0,0.00044769,2]
[343184182,1732421461955,-500.0,0.00044769,2]
[343184183,1732421461964,-500.0,0.00044769,2]
[343184184,1732421461974,-747.87,0.00044769,2]
[343184185,1732421461986,-718.12,0.00044769,2]
[343184186,1732421461996,-339.64739082,0.00044769,2]
[343184187,1732421462006,-500.0,0.00044769,2]
[343184188,1732421462015,-500.0,0.00044769,2]
[343184189,1732421462024,-500.0,0.00044769,2]
[343184190,1732421462034,-311.65192954,0.00044769,2]
[343184191,1732421462043,-500.0,0.00044769,2]
[343184192,1732421462052,-391.49125469,0.00044769,2]
[343184193,1732421462061,-500.0,0.00044769,2]
[343184194,1732421462071,-500.0,0.00044769,2]
[343184195,1732421462080,-948.38,0.00044769,2]
[343184196,1732421462090,-500.0,0.00044769,2]
[343184197,1732421462099,-355.92214612,0.00044769,2]
[343184198,1732421462108,-416.51074371,0.00044769,2]
[343184199,1732421462117,-500.0,0.00044769,2]
[343184200,1732421462127,-3544.03,0.00044769,2]
[343184201,1732421462136,-500.0,0.00044769,2]
[343184202,1732421462145,-500.0,0.00044769,2]
[343184203,1732421462155,-500.0,0.00044769,2]
[343184204,1732421462164,-500.0,0.00044769,2]
[343184205,1732421462175,-500.0,0.00044769,2]
[343184206,1732421462185,-1622.28,0.00044769,2]
[343184207,1732421462194,-500.0,0.00044769,2]
[343184208,1732421462204,-1010.91,0.00044769,2]
[343184209,1732421462214,-1151.99,0.00044769,2]
[343184210,1732421462224,-723.91,0.00044769,2]
[343184211,1732421462233,-500.0,0.00044769,2]
[343184212,1732421462242,-500.0,0.00044769,2]
[343184213,1732421462251,-974.29,0.00044769,2]
[343184214,1732421462260,-341.6828492,0.00044769,2]
[343184215,1732421462270,-2200.27,0.00044769,2]
[343184216,1732421462279,-500.0,0.00044769,2]
[343184217,1732421462288,-1850.04,0.00044769,2]
[343184218,1732421462298,-500.0,0.00044769,2]
[343184219,1732421462307,-500.0,0.00044769,2]
[343184220,1732421462317,-500.0,0.00044769,2]
[343184221,1732421462327,-500.0,0.00044769,2]
[343184222,1732421462336,-500.0,0.00044769,2]
[343184223,1732421462346,-2220.12,0.00044769,2]
[343184224,1732421462356,-500.0,0.00044769,2]
[343184225,1732421462366,-604.81299347,0.00044769,2]
[343184226,1732421462375,-150.5,0.0004477,7]
[343184227,1732421462385,-500.0,0.00044771,2]
[343184228,1732421462394,-500.0,0.00044771,2]
[343184229,1732421462403,-500.0,0.00044771,2]
[343184230,1732421462413,-1427.83,0.00044771,2]
[343184231,1732421462424,-500.0,0.00044771,2]
[343184232,1732421462433,-168.0,0.00044771,2]
[343184233,1732421462443,-500.0,0.00044771,2]
[343184234,1732421462452,-797.24,0.00044771,2]
[343184235,1732421462461,-500.0,0.00044771,2]
[343184236,1732421462471,-500.0,0.00044771,2]
[343184237,1732421462480,-806.19,0.00044771,2]
[343184238,1732421462490,-1054.97,0.00044771,2]
[343184239,1732421462499,-869.22,0.00044771,2]
[343184240,1732421462509,-500.0,0.00044771,2]
[343184241,1732421462519,-250.8,0.00044771,2]
[343184242,1732421462528,-945.01,0.00044771,2]
[343184243,1732421462537,-783.45,0.00044771,2]
[343184244,1732421462547,-613.81,0.00044771,2]
[343184245,1732421462558,-500.0,0.00044771,2]
[343184246,1732421462567,-611.03,0.00044771,2]
[343184247,1732421462577,-1248.74,0.00044771,2]
[343184248,1732421462586,-725.44,0.00044771,2]
[343184249,1732421462596,-1601.16,0.00044771,2]
[343184250,1732421462606,-500.0,0.00044771,2]
[343184251,1732421462616,-500.0,0.00044771,2]
[343184252,1732421462625,-500.0,0.00044771,2]
[343184253,1732421462634,-501.74,0.00044771,2]
[343184254,1732421462644,-628.78,0.00044771,2]
[343184255,1732421462654,-4701.61,0.00044771,2]
[343184256,1732421462663,-500.0,0.00044771,2]
[343184257,1732421462674,-500.0,0.00044771,2]
[343184258,1732421462683,-500.0,0.00044771,2]
[343184259,1732421462693,-1783.96,0.00044771,2]
[343184260,1732421462703,-500.0,0.00044771,2]
[343184261,1732421462713,-500.0,0.00044771,2]
[343184262,1732421462723,-7163.9,0.00044771,2]
[343184263,1732421462732,-500.0,0.00044771,2]
[343184264,1732421462742,-741.0,0.00044771,2]
[343184265,1732421462751,-349.13303091,0.00044771,2]
[343184266,1732421462761,-500.0,0.00044771,2]
[343184267,1732421462770,-179.55539865,0.00044771,2]
[343184268,1732421462780,-500.0,0.00044771,2]
[343184269,1732421462790,-500.0,0.00044771,2]
[343184270,1732421462799,-500.0,0.00044771,2]
[343184271,1732421462809,-500.0,0.00044772,2]
[343184272,1732421462818,-500.0,0.00044772,2]
[343184273,1732421462828,-500.0,0.00044772,2]
[343184274,1732421462837,-500.0,0.00044772,2]
[343184275,1732421462847,-500.0,0.00044772,2]
[343184276,1732421462857,-500.0,0.00044772,2]
[343184277,1732421462866,-642.00397938,0.00044772,2]
[343184278,1732421462876,-511.59127001,0.00044772,2]
[343184279,1732421462886,-500.0,0.00044772,2]
[343184280,1732421462895,-517.61759367,0.00044772,2]
[343184281,1732421462908,-500.0,0.00044772,2]
[343184282,1732421462918,-242.05161032,0.00044772,2]
[343184283,1732421462927,-219.69061473,0.00044772,2]
[343184284,1732421462936,-500.0,0.00044772,2]
[343184285,1732421462947,-500.0,0.00044772,2]
[343184286,1732421462957,-882.2,0.00044772,2]
[343184287,1732421462966,-262.69825438,0.00044772,2]
[343184288,1732421462976,-514.99760706,0.00044772,2]
[343184289,1732421462985,-500.0,0.00044772,2]
[343184290,1732421462996,-515.79,0.00044772,2]
[343184291,1732421463006,-511.18532919,0.00044772,2]
[343184292,1732421463016,-192.03309776,0.00044772,2]
[343184293,1732421463025,-500.0,0.00044772,2]
[343184294,1732421463034,-372.61765681,0.00044772,2]
[343184295,1732421463044,-327.57508875,0.00044772,2]
[343184296,1732421463054,-500.0,0.00044772,2]
[343184297,1732421463063,-500.0,0.00044772,2]
[343184298,1732421463073,-500.0,0.00044772,2]
[343184299,1732421463083,-500.0,0.00044772,2]
[343184300,1732421463094,-500.0,0.00044772,2]
[343184301,1732421463104,-500.0,0.00044772,2]
[343184302,1732421463114,-500.0,0.00044772,2]
[343184303,1732421463124,-500.0,0.00044772,2]
[343184304,1732421463134,-616.8160108,0.00044772,2]
[343184305,1732421463144,-500.0,0.00044772,2]
[343184306,1732421463153,-500.0,0.00044772,2]
[343184307,1732421463164,-500.0,0.00044772,2]
[343184308,1732421463178,-500.0,0.00044772,2]
[343184309,1732421463188,-500.0,0.00044772,2]
[343184310,1732421463198,-500.0,0.00044772,2]
[343184311,1732421463208,-500.0,0.00044772,2]
[343184312,1732421463217,-500.0,0.00044772,2]
[343184313,1732421463227,-500.0,0.00044772,2]
[343184314,1732421463236,-202.13949381,0.00044772,2]
[343184315,1732421463246,-500.0,0.00044772,2]
[343184316,1732421463256,-500.0,0.00044772,2]
[343184317,1732421463265,-500.0,0.00044772,2]
[343184318,1732421463275,-238.83541347,0.00044772,2]
[343184319,1732421463285,-605.49698425,0.00044772,2]
[343184320,1732421463293,-500.0,0.00044772,2]
[343184321,1732421463302,-500.0,0.00044772,2]
[343184322,1732421463311,-500.0,0.00044772,2]
[343184323,1732421463320,-500.0,0.00044772,2]
[343184324,1732421463329,-500.0,0.00044772,2]
[343184325,1732421463339,-500.0,0.00044772,2]
[343184326,1732421463348,-603.81,0.00044772,2]
[343184327,1732421463357,-547.17128963,0.00044772,2]
[343184328,1732421463366,-500.0,0.00044772,2]
[343184329,1732421463376,-500.0,0.00044772,2]
[343184330,1732421463386,-500.0,0.00044772,2]
[343184331,1732421463393,-1427.83,0.00044772,2]
[343184332,1732421463401,-500.0,0.00044772,2]
[343184333,1732421463411,-500.0,0.00044772,2]
[343184334,1732421463422,-625.55993737,0.00044772,2]
[343184335,1732421463433,-531.30567794,0.00044772,2]
[343184336,1732421463443,-500.0,0.00044772,2]
[343184337,1732421463453,-500.0,0.00044772,2]
[343184338,1732421463462,-500.0,0.00044772,2]
[343184339,1732421463472,-539.25,0.00044772,2]
[343184340,1732421463483,-500.0,0.00044772,2]
[343184341,1732421463493,-500.0,0.00044772,2]
[343184342,1732421463504,-168.0,0.00044772,2]
[343184343,1732421463513,-500.0,0.00044772,2]
[343184344,1732421463523,-500.0,0.00044772,2]
[343184345,1732421463533,-500.0,0.00044772,2]
[343184346,1732421463543,-500.0,0.00044772,2]
[343184347,1732421463552,-433.07270454,0.00044772,2]
[343184348,1732421463562,-723.02,0.00044772,2]
[343184349,1732421463572,-797.24,0.00044772,2]
[343184350,1732421463581,-500.0,0.00044772,2]
[343184351,1732421463591,-500.0,0.00044772,2]
[343184352,1732421463600,-500.0,0.00044772,2]
[343184353,1732421463610,-211.22394123,0.00044772,2]
[343184354,1732421463620,-307.55291595,0.00044772,2]
[343184355,1732421463630,-500.0,0.00044772,2]
[343184356,1732421463640,-806.19,0.00044772,2]
[343184357,1732421463650,-211.95866979,0.00044772,2]
[343184358,1732421463660,-500.0,0.00044772,2]
[343184359,1732421463670,-465.56379587,0.00044772,2]
[343184360,1732421463680,-500.0,0.00044772,2]
[343184361,1732421463690,-608.64,0.00044772,2]
[343184362,1732421463700,-1054.97,0.00044772,2]
[343184363,1732421463710,-500.0,0.00044772,2]
[343184364,1732421463720,-171.10402242,0.00044772,2]
[343184365,1732421463731,-500.0,0.00044772,2]
[343184366,1732421463741,-747.87,0.00044772,2]
[343184367,1732421463751,-869.22,0.00044772,2]
[343184368,1732421463762,-718.12,0.00044772,2]
[343184369,1732421463772,-500.0,0.00044772,2]
[343184370,1732421463782,-945.01,0.00044772,2]
[343184371,1732421463792,-192.84881333,0.00044772,2]
[343184372,1732421463802,-500.0,0.00044772,2]
[343184373,1732421463813,-783.45,0.00044772,2]
[343184374,1732421463823,-500.0,0.00044772,2]
[343184375,1732421463834,-500.0,0.00044772,2]
[343184376,1732421463844,-500.0,0.00044772,2]
[343184377,1732421463855,-500.0,0.00044772,2]
[343184378,1732421463865,-500.0,0.00044772,2]
[343184379,1732421463875,-613.81,0.00044772,2]
[343184380,1732421463884,-500.0,0.00044772,2]
[343184381,1732421463895,-948.38,0.00044772,2]
[343184382,1732421463906,-500.0,0.00044772,120]
[343184383,1732421463916,-500.0,0.00044772,2]
[343184384,1732421463929,-500.0,0.00044772,2]
[343184385,1732421463941,-500.0,0.00044772,2]
[343184386,1732421463950,-500.0,0.00044772,2]
[343184387,1732421463959,-3544.03,0.00044772,2]
[343184388,1732421463968,-611.03,0.00044772,2]
[343184389,1732421463979,-500.0,0.00044772,2]
[343184390,1732421463988,-300.85514217,0.00044772,2]
[343184391,1732421463997,-1248.74,0.00044772,2]
[343184392,1732421464007,-500.0,0.00044772,2]
[343184393,1732421464016,-725.44,0.00044772,2]
[343184394,1732421464025,-500.0,0.00044772,2]
[343184395,1732421464034,-233.1939655,0.00044772,2]
[343184396,1732421464043,-1622.28,0.00044772,2]
[343184397,1732421464052,-396.52783151,0.00044772,2]
[343184398,1732421464061,-1010.91,0.00044772,2]
[343184399,1732421464071,-1601.16,0.00044772,2]
[343184400,1732421464080,-500.0,0.00044772,2]
[343184401,1732421464087,-1151.99,0.00044772,2]
[343184402,1732421464096,-500.0,0.00044772,2]
[343184403,1732421464102,-723.91,0.00044772,2]
[343184404,1732421464111,-1046.95,0.00044772,2]
[343184405,1732421464118,-500.0,0.00044772,2]
[343184406,1732421464125,-500.0,0.00044772,2]
[343184407,1732421464134,-974.29,0.00044772,2]
[343184408,1732421464143,-336.29755363,0.00044772,2]
[343184409,1732421464150,-2200.27,0.00044772,2]
[343184410,1732421464158,-359.0363593,0.00044772,2]
[343184411,1732421464166,-501.74,0.00044772,2]
[343184412,1732421464178,-628.78,0.00044772,2]
[343184413,1732421464187,-1850.04,0.00044772,2]
[343184414,1732421464196,-500.0,0.00044772,2]
[343184415,1732421464203,-4701.61,0.00044772,2]
[343184416,1732421464339,-500.0,0.00044772,2]
[343184417,1732421464350,-500.0,0.00044772,2]
[343184418,1732421464359,-500.0,0.00044772,2]
[343184419,1732421464370,-500.0,0.00044772,2]
[343184420,1732421464379,-500.0,0.00044772,2]
[343184421,1732421464389,-1783.96,0.00044772,2]
[343184422,1732421464399,-216.9209522,0.00044772,2]
[343184423,1732421464409,-500.0,0.00044772,2]
[343184424,1732421464419,-500.0,0.00044772,2]
[343184425,1732421464431,-500.0,0.00044772,2]
[343184426,1732421464441,-7163.9,0.00044772,2]
[343184427,1732421464451,-500.0,0.00044772,2]
[343184428,1732421464461,-2220.12,0.00044772,2]
[343184429,1732421464470,-500.0,0.00044772,2]
[343184430,1732421464480,-741.0,0.00044772,2]
[343184431,1732421464489,-434.69441644,0.00044772,2]
[343184432,1732421464500,-500.0,0.00044772,2]
[343184433,1732421464509,-342.92247999,0.00044772,2]
[343184434,1732421464519,-500.0,0.00044772,2]
[343184435,1732421464529,-157.38130655,0.00044772,30]
[343184436,1732421464541,-250000.0,0.00044773,2]
[343184437,1732421464552,-150.5,0.0004478,7]
[343184438,1732421464561,-1046.95,0.00044789,2]
[343184439,1732421464571,-150.5,0.0004479,7]
[343184440,1732421464580,-5000.0,0.0004479,120]
[343184441,1732421464590,-30043.5691551,0.0004479,5]
[343184442,1732421464600,-500.0,0.00044798,2]
[343184443,1732421464610,-500.0,0.00044798,2]
[343184444,1732421464621,-500.0,0.00044798,2]
[343184445,1732421464631,-500.0,0.00044798,2]
[343184446,1732421464641,-500.0,0.00044798,2]
[343184447,1732421464651,-500.0,0.00044798,2]
[343184448,1732421464662,-1427.83,0.00044798,2]
[343184449,1732421464673,-1332.08,0.00044798,7]
[343184450,1732421464687,-500.0,0.00044798,2]
[343184451,1732421464697,-539.25,0.00044798,2]
[343184452,1732421464707,-500.0,0.00044798,2]
[343184453,1732421464717,-219.49626326,0.00044798,2]
[343184454,1732421464728,-500.0,0.00044798,2]
[343184455,1732421464738,-500.0,0.00044798,2]
[343184456,1732421464749,-723.02,0.00044798,2]
[343184457,1732421464758,-797.24,0.00044798,2]
[343184458,1732421464768,-500.0,0.00044798,2]
[343184459,1732421464778,-500.0,0.00044798,2]
[343184460,1732421464788,-806.19,0.00044798,2]
[343184461,1732421464798,-500.0,0.00044798,2]
[343184462,1732421464807,-1054.97,0.00044798,2]
[343184463,1732421464818,-747.87,0.00044798,2]
[343184464,1732421464828,-869.22,0.00044798,2]
[343184465,1732421464838,-718.12,0.00044798,2]
[343184466,1732421464848,-500.0,0.00044798,2]
[343184467,1732421464858,-945.01,0.00044798,2]
[343184468,1732421464867,-500.0,0.00044798,2]
[343184469,1732421464877,-783.45,0.00044798,2]
[343184470,1732421464887,-500.0,0.00044798,2]
[343184471,1732421464898,-500.0,0.00044798,2]
[343184472,1732421464910,-500.0,0.00044798,2]
[343184473,1732421464922,-613.81,0.00044798,2]
[343184474,1732421464936,-500.0,0.00044798,2]
[343184475,1732421464946,-948.38,0.00044798,2]
[343184476,1732421464956,-500.0,0.00044798,2]
[343184477,1732421464965,-500.0,0.00044798,2]
[343184478,1732421464974,-564.6194017,0.00044798,2]
[343184479,1732421464986,-3544.03,0.00044798,2]
[343184480,1732421464995,-611.03,0.00044798,2]
[343184481,1732421465005,-500.0,0.00044798,2]
[343184482,1732421465015,-1248.74,0.00044798,2]
[343184483,1732421465025,-626.34528153,0.00044798,2]
[343184484,1732421465035,-725.44,0.00044798,2]
[343184485,1732421465044,-500.0,0.00044798,2]
[343184486,1732421465055,-1622.28,0.00044798,2]
[343184487,1732421465066,-1010.91,0.00044798,2]
[343184488,1732421465076,-1601.16,0.00044798,2]
[343184489,1732421465086,-500.0,0.00044798,2]
[343184490,1732421465096,-1151.99,0.00044798,2]
[343184491,1732421465106,-500.0,0.00044798,2]
[343184492,1732421465115,-723.91,0.00044798,2]
[343184493,1732421465125,-1046.95,0.00044798,2]
[343184494,1732421465135,-500.0,0.00044798,2]
[343184495,1732421465145,-500.0,0.00044798,2]
[343184496,1732421465155,-974.29,0.00044798,2]
[343184497,1732421465165,-2200.27,0.00044798,2]
[343184498,1732421465178,-501.74,0.00044798,2]
[343184499,1732421465187,-628.78,0.00044798,2]
[343184500,1732421465197,-1850.04,0.00044798,2]
[343184501,1732421465207,-500.0,0.00044798,2]
[343184502,1732421465216,-4701.61,0.00044798,2]
[343184503,1732421465227,-500.0,0.00044798,2]
[343184504,1732421465237,-501.96258774,0.00044798,2]
[343184505,1732421465247,-500.0,0.00044798,2]
[343184506,1732421465257,-500.0,0.00044798,2]
[343184507,1732421465267,-500.0,0.00044798,2]
[343184508,1732421465277,-1783.96,0.00044798,2]
[343184509,1732421465286,-500.0,0.00044798,2]
[343184510,1732421465296,-177.20397649,0.00044798,2]
[343184511,1732421465306,-500.0,0.00044798,2]
[343184512,1732421465315,-7163.9,0.00044798,2]
[343184513,1732421465325,-500.0,0.00044798,2]
[343184514,1732421465334,-2220.12,0.00044798,2]
[343184515,1732421465344,-500.0,0.00044798,2]
[343184516,1732421465353,-741.0,0.00044798,2]
[343184517,1732421465363,-500.0,0.00044798,2]
[343184518,1732421465372,-500.0,0.00044799,2]
[343184519,1732421465382,-500.0,0.00044799,2]
[343184520,1732421465391,-500.0,0.00044799,2]
[343184521,1732421465402,-597.34230517,0.00044799,2]
[343184522,1732421465412,-500.0,0.00044799,2]
[343184523,1732421465424,-500.0,0.00044799,2]
[343184524,1732421465433,-452.85777104,0.00044799,2]
[343184525,1732421465443,-458.91714086,0.00044799,2]
[343184526,1732421465452,-246.22895579,0.00044799,2]
[343184527,1732421465462,-628.74355183,0.00044799,2]
[343184528,1732421465471,-514.30987902,0.00044799,2]
[343184529,1732421465481,-500.0,0.00044799,2]
[343184530,1732421465491,-500.0,0.00044799,2]
[343184531,1732421465500,-263.24308003,0.00044799,2]
[343184532,1732421465510,-500.0,0.00044799,2]
[343184533,1732421465520,-500.0,0.00044799,2]
[343184534,1732421465530,-500.0,0.00044799,2]
[343184535,1732421465540,-500.0,0.00044799,2]
[343184536,1732421465550,-500.0,0.00044799,2]
[343184537,1732421465561,-308.62432062,0.00044799,2]
[343184538,1732421465571,-882.2,0.00044799,2]
[343184539,1732421465581,-882.2,0.00044799,2]
[343184540,1732421465590,-882.2,0.00044799,2]
[343184541,1732421465601,-500.0,0.00044799,2]
[343184542,1732421465611,-500.0,0.00044799,2]
[343184543,1732421465620,-500.0,0.00044799,2]
[343184544,1732421465629,-515.79,0.00044799,2]
[343184545,1732421465639,-515.79,0.00044799,2]
[343184546,1732421465649,-515.79,0.00044799,2]
[343184547,1732421465663,-500.0,0.00044799,2]
[343184548,1732421465674,-500.0,0.00044799,2]
[343184549,1732421465684,-500.0,0.00044799,2]
[343184550,1732421465695,-500.0,0.00044799,2]
[343184551,1732421465705,-500.0,0.00044799,2]
[343184552,1732421465716,-500.0,0.00044799,2]
[343184553,1732421465726,-500.0,0.00044799,2]
[343184554,1732421465736,-371.67079598,0.00044799,2]
[343184555,1732421465746,-262.3409579,0.00044799,2]
[343184556,1732421465756,-500.0,0.00044799,2]
[343184557,1732421465766,-500.0,0.00044799,2]
[343184558,1732421465776,-500.0,0.00044799,2]
[343184559,1732421465785,-500.0,0.00044799,2]
[343184560,1732421465795,-500.0,0.00044799,2]
[343184561,1732421465805,-500.0,0.00044799,2]
[343184562,1732421465815,-464.65682334,0.00044799,2]
[343184563,1732421465825,-500.0,0.00044799,2]
[343184564,1732421465834,-231.73580853,0.00044799,2]
[343184565,1732421465844,-500.0,0.00044799,2]
[343184566,1732421465854,-500.0,0.00044799,2]
[343184567,1732421465864,-500.0,0.00044799,2]
[343184568,1732421465874,-500.0,0.00044799,2]
[343184569,1732421465884,-500.0,0.00044799,2]
[343184570,1732421465896,-500.0,0.00044799,2]
[343184571,1732421465909,-500.0,0.00044799,2]
[343184572,1732421465919,-500.0,0.00044799,2]
[343184573,1732421465931,-240.81753932,0.00044799,2]
[343184574,1732421465941,-500.0,0.00044799,2]
[343184575,1732421465952,-568.89560224,0.00044799,2]
[343184576,1732421465962,-500.0,0.00044799,2]
[343184577,1732421465973,-500.0,0.00044799,2]
[343184578,1732421465983,-500.0,0.00044799,2]
[343184579,1732421465994,-500.0,0.00044799,2]
[343184580,1732421466004,-500.0,0.00044799,2]
[343184581,1732421466015,-500.0,0.00044799,2]
[343184582,1732421466024,-500.0,0.00044799,2]
[343184583,1732421466034,-500.0,0.00044799,2]
[343184584,1732421466044,-500.0,0.00044799,2]
[343184585,1732421466054,-500.0,0.00044799,2]
[343184586,1732421466063,-500.0,0.00044799,2]
[343184587,1732421466073,-500.0,0.00044799,2]
[343184588,1732421466083,-500.0,0.00044799,2]
[343184589,1732421466093,-500.0,0.00044799,2]
[343184590,1732421466104,-500.0,0.00044799,2]
[343184591,1732421466115,-500.0,0.00044799,2]
[343184592,1732421466125,-500.0,0.00044799,2]
[343184593,1732421466135,-278.28802564,0.00044799,2]
[343184594,1732421466145,-500.0,0.00044799,2]
[343184595,1732421466155,-500.0,0.00044799,2]
[343184596,1732421466165,-500.0,0.00044799,2]
[343184597,1732421466176,-500.0,0.00044799,2]
[343184598,1732421466186,-500.0,0.00044799,2]
[343184599,1732421466197,-500.0,0.00044799,2]
[343184600,1732421466207,-330.30886675,0.00044799,2]
[343184601,1732421466216,-619.84861337,0.00044799,2]
[343184602,1732421466226,-274.46733883,0.00044799,2]
[343184603,1732421466235,-500.0,0.00044799,2]
[343184604,1732421466245,-527.99174662,0.00044799,2]
[343184605,1732421466255,-500.0,0.00044799,2]
[343184606,1732421466264,-500.0,0.00044799,2]
[343184607,1732421466274,-500.0,0.00044799,2]
[343184608,1732421466284,-566.98519095,0.00044799,2]
[343184609,1732421466294,-500.0,0.00044799,2]
[343184610,1732421466304,-500.0,0.00044799,2]
[343184611,1732421466314,-264.16,0.00044799,2]
[343184612,1732421466323,-500.0,0.00044799,2]
[343184613,1732421466333,-500.0,0.00044799,2]
[343184614,1732421466343,-348.3997392,0.00044799,2]
[343184615,1732421466353,-500.0,0.00044799,2]
[343184616,1732421466363,-1427.83,0.00044799,2]